Cogmind - Beta 13 @@@ ROGUE MODE // 2024.04.22 @ 18:51:14 Player: Olafz Result: Destroyed by QB-4XP(R) with Subdweller Beam Cannon Performance ------------- Evolutions (0) 0 Regions Visited (3) 600 Robots Destroyed (8) 40 Value Destroyed (245) 245 Prototype IDs (0) 0 Alien Tech Used (0) 0 Bonus (120) 120 TOTAL SCORE: 1005 Bonus ------- Follower Combat Kills 120 Cogmind --------- Core Integrity 0/250 Matter 273/300 Energy 150/150 System Corruption 0% Temperature Cool (9) Movement Walking (190) Ox1 Location -10/Subcaves Parts ------- > --- POWER (1) -------- Light Angular Momentum Engine > --- PROPULSION (2) --- Aluminum Leg > --- UTILITY (2) ------ Small Storage Unit > --- WEAPON (2) ------- Light Assault Rifle > --- INVENTORY (8) ---- Aluminum Leg Aluminum Leg Aluminum Leg Mini Grenade Launcher Mini Grenade Launcher Flail Peak State ------------ > --- POWER ------------ Light Angular Momentum Engine > --- PROPULSION ------- Aluminum Leg Carbon-fiber Leg > --- UTILITY ---------- Improved Heat Sink Small Storage Unit > --- WEAPON ----------- Particle Gun Beamcaster > --- INVENTORY -------- Aluminum Leg Aluminum Leg Aluminum Leg Light Assault Rifle Mini Grenade Launcher Mini Grenade Launcher Flail [Rating: 21] Favorites ----------- Power Light Nuclear Core Engine Light Ion Engine Power Core Light Nuclear Core Propulsion Aluminum Leg Leg Aluminum Leg Utility Small Storage Unit Device Improved Heat Sink Storage Small Storage Unit Processor Signal Interpreter Weapon Assault Rifle Energy Gun Particle Gun Ballistic Gun Assault Rifle Ballistic Cannon Battle Cannon Build | -11 -10 -10 -10 ------- Run | Yrd Mat Min Sub Slots Evolved . | . . . . Power . | . . . . Propulsion . | . . . . Utility . | . . . . Weapon . | . . . . Parts Attached 13 | . 4 2 7 Power 3 | . . 1 2 Engine 1 | . . . 1 Core 2 | . . 1 1 Reactor . | . . . . Propulsion 3 | . 2 . 1 Treads . | . . . . Leg 3 | . 2 . 1 Wheel . | . . . . Hover . | . . . . Flight . | . . . . Utility 2 | . 1 . 1 Device 1 | . . . 1 Storage . | . . . . Processor 1 | . 1 . . Hackware . | . . . . Protection . | . . . . Artifact . | . . . . Weapon 5 | . 1 1 3 Energy Gun 2 | . . 1 1 Energy Cannon . | . . . . Ballistic Gun 2 | . 1 . 1 Ballistic Cannon 1 | . . . 1 Launcher . | . . . . Special Weapon . | . . . . Impact Weapon . | . . . . Slashing Weapon . | . . . . Piercing Weapon . | . . . . Special Melee Weapon . | . . . . Unidentified Prototypes . | . . . . Parts Lost 6 | . . 1 5 Power 1 | . . 1 . Propulsion 1 | . . . 1 Utility 1 | . . . 1 Weapon 3 | . . . 3 Highest Loss Streak 5 | . . 1 5 To Critical Strikes . | . . . . Average Slot Usage (%) 96 | . 88 99 96 Engine 7 | . 14 3 9 Core 6 | . . 10 4 Leg 27 | . 28 28 27 Storage 14 | . 14 14 14 Processor 10 | . 3 14 12 Energy Gun 8 | . . 10 21 Ballistic Gun 18 | . 28 17 4 Naked Turns . | . . . . Heaviest Build 23 | 10 11 15 23 Greatest Support 25 | 20 20 20 25 Greatest Overweight (x) . | . . . . Average Overweight (x) . | . . . . Largest Inventory Capacity 8 | . 8 8 8 Average Capacity 8 | . 8 8 8 Most Carried 8 | . 8 8 8 Average Carried 7 | . 7 7 7 Final Capacity 8 | 8 8 8 8 Final Carried 8 | 6 7 8 6 Class Distribution -------------------- 90% | Mutant 9% | Scavenger-Mutant Dominant Class ---------------- Mutant | -10/Materials Mutant | -10/Mines Scavenger-Mutant | -10/Subcaves Resources | -11 -10 -10 -10 ----------- Run | Yrd Mat Min Sub Matter Collected 423 | 200 38 116 69 Remotely . | . . . . Salvage Created 311 | . 110 80 121 Parts 21 | . 10 4 7 Haulers Intercepted . | . . . . Recyclers Shooed 1 | . . 1 . Parts Field Recycled . | . . . . Retrieved Matter . | . . . . Parts Self-Destructed 3 | . . . 3 Prevented . | . . . . Kills | -11 -10 -10 -10 ------- Run | Yrd Mat Min Sub Combat Hostiles Destroyed 6 | . 3 . 3 Guns 6 | . 3 . 3 Classes Destroyed 4 | . 1 2 1 Tunneler 1 | . . 1 . Recycler 1 | . . 1 . Grunt 3 | . 3 . . Subdweller 3 | . . . 3 Best Kill Streak 2 | . 1 1 2 Combat Bots Only 2 | . 1 . 2 Max Kills in Single Turn 1 | . 1 1 1 Gunslinging . | . . . . Exploded . | . . . . Melee . | . . . . Uniques/NPCs Destroyed . | . . . . Combat | -11 -10 -10 -10 -------- Run | Yrd Mat Min Sub Hostile Shots Fired 69 | . 15 18 36 Missed 18 | . 3 5 10 Damage Taken 957 | . 129 172 656 Core 262 | . . 21 241 Absorbed by Shields . | . . . . Core Remaining (%) 100 | 100 . . . Volleys Fired 55 | . 17 19 19 Largest 2 | . 2 2 2 Hottest 140 | . 40 85 140 Shots Fired 108 | . 34 38 36 Gun 104 | . 34 38 32 Cannon 4 | . . . 4 Launcher . | . . . . Special . | . . . . Kinetic 80 | . 34 31 15 Thermal 28 | . . 7 21 Explosive . | . . . . Electromagnetic . | . . . . Robot Hit Streak 13 | . 6 8 13 Robot Miss Streak 5 | . 5 4 1 Penetration Max . | . . . . Secondary Targets 1 | . . . 1 Max Gunslinging Chain 1 | . . . 1 Shots Hit Robots 70 | . 19 24 27 Core Hits 21 | . 7 8 6 Critical Kills 1 | . 1 . . Critical Parts Destroyed . | . . . . Critical Strikes 1 | . 1 . . Destroy 1 | . 1 . . Melee Attacks . | . . . . Impact . | . . . . Slashing . | . . . . Piercing . | . . . . Sneak Attacks . | . . . . Combat Hostiles . | . . . . Follow-up Attacks . | . . . . Damage Inflicted 860 | . 157 269 434 Guns 759 | . 147 269 343 Cannons 91 | . . . 91 Explosions . | . . . . Melee . | . . . . Ramming 10 | . 10 . . Kinetic 549 | . 147 200 202 Thermal 301 | . . 69 232 Explosive . | . . . . Electromagnetic . | . . . . Impact . | . . . . Slashing . | . . . . Piercing . | . . . . Highest Corruption . | . . . . Average Corruption . | . . . . Corruption Purged . | . . . . Corruption Blocked . | . . . . Overload Shots . | . . . . Overflow Damage . | . . . . Projectiles . | . . . . Explosions . | . . . . Melee . | . . . . Knockbacks 2 | . . . 2 Impact . | . . . . Kinetic 2 | . . . 2 Secondary . | . . . . Self-Inflicted Damage . | . . . . Shots . | . . . . Rammed . | . . . . Targets Rammed 3 | . 3 . . Kicked 3 | . 3 . . Crushed . | . . . . Highest Temperature 210 | . 12 210 24 Average Temperature 64 | . 7 98 9 Received Heat Transfer 276 | . 72 96 108 Siege Activations . | . . . . Robots Corrupted . | . . . . Combat Hostiles . | . . . . Parts Fried . | . . . . Impact Corruptions . | . . . . Robots Melted . | . . . . Combat Hostiles . | . . . . Parts Melted 3 | . . . 3 Heat Transferred 666 | . . 148 518 Parts Sabotaged . | . . . . Parts Stolen . | . . . . Parts Stripped . | . . . . Power Chain Reactions . | . . . . Alert | -11 -10 -10 -10 ------- Run | Yrd Mat Min Sub Peak Influence 91 | . 70 91 . Initial 11 | . . 11 . Average 49 | . 43 52 . Maximum Alert Level . | . . . . Low Security (%) 100 | . 100 100 . Level 1 . | . . . . Level 2 . | . . . . Level 3 . | . . . . Level 4 . | . . . . Level 5 . | . . . . High Security . | . . . . Max Security . | . . . . Squads Dispatched 1 | . 1 . . Investigation . | . . . . Extermination . | . . . . Reinforcement 1 | . 1 . . Assault . | . . . . Garrison . | . . . . Intercept . | . . . . Searches Triggered . | . . . . Construction Impeded . | . . . . Haulers Reinforced . | . . . . Active Scanning Responses . | . . . . Cargo Convoy Interrupts . | . . . . Stealth | -11 -10 -10 -10 --------- Run | Yrd Mat Min Sub Distress Signals 1 | . 1 . . Communications Jammed . | . . . . Distress Signals . | . . . . Times Spotted 15 | . 6 4 5 Peak Tracking Total 3 | . 3 2 3 Tactical Retreats . | . . . . Traps | -11 -10 -10 -10 ------- Run | Yrd Mat Min Sub Traps Triggered . | . . . . Indirectly . | . . . . Trap Hack Attempts . | . . . . Triggered . | . . . . Disarmed . | . . . . Reprogrammed . | . . . . Reused . | . . . . Traps Extracted . | . . . . Installed . | . . . . Triggered . | . . . . Machines | -11 -10 -10 -10 ---------- Run | Yrd Mat Min Sub Machines Disabled 1 | . . 1 . Max in Single Turn . | . . . . Machines Repaired . | . . . . Machines Dismantled . | . . . . Machines Sabotaged . | . . . . Overloaded Fab Kills . | . . . . Hacking | -11 -10 -10 -10 --------- Run | Yrd Mat Min Sub Machines Accessed . | . . . . Terminals . | . . . . Fabricators . | . . . . Repair Stations . | . . . . Recycling Units . | . . . . Scanalyzers . | . . . . Garrison Access . | . . . . Total Hacks . | . . . . Successful . | . . . . Failed . | . . . . Catastrophic . | . . . . Database Lockouts . | . . . . Manual . | . . . . Terminals . | . . . . Fabricators . | . . . . Repair Stations . | . . . . Recycling Units . | . . . . Scanalyzers . | . . . . Garrison Access . | . . . . Terminal Hacks . | . . . . Fabricator Hacks . | . . . . Repair Station Hacks . | . . . . Recycling Unit Hacks . | . . . . Scanalyzer . | . . . . Garrison Access Hacks . | . . . . Unauthorized Hacks . | . . . . Terminals . | . . . . Fabricators . | . . . . Repair Stations . | . . . . Recycling Units . | . . . . Scanalyzers . | . . . . Garrison Access . | . . . . Data Cores Recovered . | . . . . Used . | . . . . Hacking Detections . | . . . . Full Trace Events . | . . . . Feedback Events . | . . . . Feedback Blocked . | . . . . Robot Schematics Acquired . | . . . . Robots Built . | . . . . Authchips . | . . . . Time . | . . . . Total Robot Build Rating . | . . . . Part Schematics Acquired . | . . . . Parts Built . | . . . . Authchips . | . . . . Time . | . . . . Total Part Build Rating . | . . . . Parts Repaired . | . . . . Time . | . . . . Parts Recycled . | . . . . Recycled Matter . | . . . . Retrieved Matter . | . . . . Retrieved Components . | . . . . Parts Scanalyzed . | . . . . Part Schematics Acquired . | . . . . Parts Damaged . | . . . . Bothacking | -11 -10 -10 -10 ------------ Run | Yrd Mat Min Sub Used RIF Installer . | . . . . Robots Hacked . | . . . . Non-combat . | . . . . Combat . | . . . . Robot Hacks Applied . | . . . . Relay Couplers Released . | . . . . Fabnet Peak Effective % . | . . . . Robots Rewired . | . . . . Allies Hacked . | . . . . Hacks Repelled . | . . . . Allies | -11 -10 -10 -10 -------- Run | Yrd Mat Min Sub Total Allies 2 | . . 2 . Largest Group 2 | . . 2 2 Highest-Rated Group 52 | . . 52 52 Highest-Rated Ally 31 | . . 31 31 Total Orders . | . . . . Ally Attacks 21 | . . 15 6 Total Damage 251 | . . 168 83 Kills 4 | . . 4 . Allies Corrupted . | . . . . Allies Melted . | . . . . Intel | -11 -10 -10 -10 ------- Run | Yrd Mat Min Sub Robot Analysis Total . | . . . . Derelict Logs Recovered 2 | . . 1 1 Drone Launches . | . . . . Drone Recoveries . | . . . . Exploration | -11 -10 -10 -10 ------------- Run | Yrd Mat Min Sub Turns Passed 1589 | . 477 888 224 Spaces Moved 1042 | 1 318 593 130 Core . | . . . . Treads . | . . . . Legs 1042 | 1 318 593 130 Wheels . | . . . . Hover . | . . . . Flight . | . . . . Fastest Speed 120 | 120 120 120 120 Average Speed 120 | 120 120 120 120 Slowest Speed 120 | 120 120 120 120 Overloaded Moves . | . . . . Propulsion Burnouts . | . . . . Robots Hopped . | . . . . Cave-ins Triggered . | . . . . Exploration Rate (%) 41 | 2 54 100 10 Regions Visited 3 Branch Regions 2 Pre-discovered Areas 2 | . . 1 1 Known Exits Taken 2 | . 1 1 . Unknown Exits Taken 1 | 1 . . . Scrap Searched 2 | . . 1 1 Spaces Dug . | . . . . Terrain Destroyed . | . . . . Melee . | . . . . Projectile . | . . . . AOE . | . . . . Terrain Rammed . | . . . . Walls Destroyed . | . . . . Machines Disabled . | . . . . Actions | -11 -10 -10 -10 --------- Run | Yrd Mat Min Sub Total 1287 | . 388 735 164 Wait 153 | . 35 118 . Move 1039 | . 317 592 130 Hop . | . . . . Pick Up 9 | . 5 2 2 Fast Attach 6 | . 1 2 3 Attach 3 | . . . 3 Detach 1 | . . . 1 Swap 4 | . 3 . 1 Drop 14 | . 7 2 5 Fire 55 | . 17 19 19 Melee . | . . . . Ram . | . . . . Kick 3 | . 3 . . Crush . | . . . . Escape Stasis . | . . . . Rewire . | . . . . Trap . | . . . . Miscellaneous . | . . . . Route ------- -11/Scrapyard -10/Materials (discovered 3 exits: *Mat x2 / *Min) -10/Mines (discovered 3 exits: *Mat x2 / *Sub) -10/Subcaves (discovered 1 exit: [*Mat]) History --------- Turn | Location | Event 1 | -11/Scrapyard | Discovered new exit (range 0) 1 | -11/Scrapyard | Entered Materials 197 | -10/Materials | Discovered new exit (range 9) 261 | -10/Materials | Discovered new exit (range 12) 303 | -10/Materials | Build established: Mutant 337 | -10/Materials | Discovered new exit (range 16) 477 | -10/Materials | Identified exit to Mines 478 | -10/Materials | Entered Mines 1186 | -10/Mines | Discovered new exit (range 6) 1193 | -10/Mines | Learned location of Zion (-6) 1209 | -10/Mines | Discovered new exit (range 3) 1210 | -10/Mines | Identified exit to Materials 1349 | -10/Mines | Discovered new exit (range 10) 1362 | -10/Mines | Identified exit to Subcaves 1366 | -10/Mines | Entered Subcaves 1366 | -10/Subcaves | Accompanied by 2 allies 1371 | -10/Subcaves | Led the pair of lost Derelicts to an unsafe place 1486 | -10/Subcaves | Discovered new exit (range 12) 1558 | -10/Subcaves | Ambushed by Subdwellers from Twisted Machinery 1565 | -10/Subcaves | Disturbed a concealed Subdweller 1572 | -10/Subcaves | Core integrity fell below 50% 1585 | -10/Subcaves | Core integrity fell below 20% 1590 | -10/Subcaves | Destroyed by QB-4XP(R) with Subdweller Beam Cannon Last Messages --------------- Acquired Beamcaster. Acquired 11 matter. Extracted 4 energy. Subatomizers dissect the Sub. Power Source. EXIT=FOUND MY-02H(R) emerges from the Twisted Machinery. Searching scrap... Found Battle Cannon. Found 17 Matter. Discarded Signal Interpreter. QB-4XP(R) angrily emerges from the Twisted Machinery. XA-BJN(R) destroyed. Beamcaster destroyed. Imp. Heat Sink destroyed. Acquired Battle Cannon. QB-4XP(R) knocked back. QB-4XP(R) affixes Scrap Shield Fragment to Scrap Shield. Particle Gun destroyed. Battle Cannon destroyed. Carbon-fiber Leg destroyed. Map ----- +----------------------------------------------------+ | ?????????????????????????????????????????????????? | | ?????????????????????????????????????????????????? | | ????????????????????????????????????????? ?????? | | ???????????????????????????????????? ???? ????? | | ???????????????????????????????????? #??? ????? | | ???????????????????????????????????? ??? ????? | | ??????????????????????????????????? ???# ????? | | ??????????????????????????????????? ???# ????? | | ????????????????????????? ??????? ??## ????? | | ????????????????????? ## ??????? #### #????? | | ???????????????????? ??????? ?# #????? | | ????????????????????# ??????? ### #????? | | ???????????????????## ?????## "?# #????? | | ?????????????????### ?????# #?# #????? | | ?????????????????# #????## "#?# ###?## | | ?????????????????? #???## #### ### | | ?????????????????? ##### #""# | | ?????????????????### """" | | ????????????????## # % """" # ## | | ????????????????# % % " # ##### | | ????????????????# $ ;# "" #???? | | ?????????????????# $$R ;; R "" ####???# | | ?????????????????# $ $ * #### # #??????# | | ?????????????????# ]%##??##### "#?????# | | ?????????????????# ;;;;##??????? "#?????? | | ?????????????????## @; ###???????######?????? | | ??????????????????####;;;;;##????????????????????? | | ?????????????????????#### ##?????????????????????? | | ????????????????????????###??????????????????????? | | ?????????????????????????????????????????????????? | | ?????????????????????????????????????????????????? | | ?????????????????????????????????????????????????? | | ?????????????????????????????????????????????????? | | ?????????????????????????????????????????????????? | | ?????????????????????????????????????????????????? | | ?????????????????????????????????????????????????? | | ?????????????????????????????????????????????????? | | ?????????????????????????????????????????????????? | | ?????????????????????????????????????????????????? | | ?????????????????????????????????????????????????? | | | | | | | | | | | | | | | | | | | | | +----------------------------------------------------+ Best States ------------- Heat Dissipation 39 Energy Generation 18 Energy Capacity 160 Matter Stores 300 Matter Capacity 300 Sight Range 16 Terrain Scan Density 10 Evasion (%) 55 Item Schematics ----------------- None Robot Schematics ------------------ None Fabricated ------------ Nothing Alien Tech Used ----------------- None Achievements -------------- None Challenges ------------ None Game ------ Seed AdvancedTacticalRecalibrator Manual? 0 Play Time 00:08:19 Cumulative 78.4 hours Start 2024.04.22 @ 18:41:44 End 2024.04.22 @ 18:51:14 Sessions 1 Manual Loads 0 Difficulty Rogue Special Mode None Game No. 163 Rogue 161 Adventurer 2 Explorer 0 Win Type - Total 2 Types 2/0/0/0/0/0/0/0/0 Lore% 49 Gallery% 49 Achievement% 37 Wizard Run 0 Options --------- Layout 0 ASCII 0 Keyboard 1 Movement Numpad Keybinds 1 Fullscreen 2 Font 18/SmallcapsGlow Map View 76x50 Zoom Use 0% Tactical HUD 1 Map Filters NONE Filters NONE Steam 1 RUN: e1925f90-7ffa-479a-9692-3930c2d7be1d